{"text_format":"1","workbook":"xlsx","n_sheets":3,"sheets":["Лист1","Лист2","Лист3"],"not_rendered":{"charts":0,"images":0,"macros":0,"external_links":0,"defined_names":0,"comments":0,"pivot_tables":0},"unopened":[],"bounds":{"document_bytes":16777216,"sheet_cells":100000,"rows_first":2000,"rows_last":500,"rows_between":2000,"halvings":0,"cell_chars":16384,"cell_head_chars":4096},"cells_cut":0,"cells_raw":0,"read":"whole","date_system":"1900"}

{"sheet":"Лист1","index":0,"n_rows":0,"n_cols":0,"rows_kept":0,"cut":false,"hidden":false,"merged":[]}

{"sheet":"Лист2","index":1,"n_rows":102,"n_cols":9,"rows_kept":102,"cut":false,"hidden":false,"merged":[[1,7,4,7],[1,8,4,8],[1,0,4,0],[1,1,4,1],[1,2,1,6],[2,2,4,2],[2,3,2,6]]}
["5. Показатели по поступлениям и выплатам  Учреждения "]
["Наименование показателя","Всего","в том числе   очередной финансовый год      2014",null,null,null,null,"1-й год планового периода ","2-й год планового периода"]
[null,null,"всего","из них:      "]
[null,null,null,"I  ","II","III","IV"]
[null,null,null,"кв. ","кв. ","кв.","кв."]
["1. Остаток средств     "]
["2. Поступления, всего  ",{"$f":"B9","v":28534200},{"$f":"C9+C19+C20+C21","v":9511400},2760000,2717000,1755000,2279400,9511400,9511400]
["в том числе:           "]
["2.1. субсидии на   выполнение   муниципального задания  всего:  в том числе:                      ",{"$f":"B11+B12+B18","v":28534200},{"$f":"C10+C11+C12+C13+C14+C15+C16+C17+C18","v":9511400},{"$f":"D11+D12+D17+D18","v":2760000},2717000,1755000,2279400,9511400,9511400]
["2.1.1. Обеспечение государственных гарантий прав граждан на получение общедоступного бесплатного дошкольного образования"]
["2.1.2. Социальная поддержка семей, имеющих детей, в отношении питания детей, обучающихся в общеобразовательных школах.",{"$f":"C11+H11+I11","v":826200},{"$f":"D11+E11+F11+G11","v":275400},130000,60000,50000,35400,275400,275400]
["2.1.3. Обеспечение государственных гарантий прав граждан на  получение общедоступного и бесплатного начального общего, основного общего, среднего (полного) общего образования",{"$f":"C12+H12+I12","v":16101000},{"$f":"D12+E12+F12+G12","v":5367000},1342000,1771000,912000,1342000,5367000,5367000]
["2.1.4. Обеспечение государственных гарантий прав граждан, содержащихся в исправительных учреждениях УИН, на  получение общедоступного и бесплатного начального общего, основного общего, среднего (полного) общего образования"]
["2.1.5. Социальная поддержка семей, имеющих детей, в отношении содержания детей в организациях, оказывающих услуги по обучению, воспитанию и уходу за детьми дошкольного возраста"]
["2.1.6. Социальная поддержка семей, имеющих детей, в отношении компенсации части родительской платы за содержание ребенка в образовательных организациях, реализующих основную общеобразовательную программу дошкольного образования, за счет средств областного  бюджета"]
["2.1.7. Социальная поддержка детей, обучающихся в  специальных (коррекционных) образовательных учреждениях обучающихся, воспитанников с ограниченными возможностями здоровья, в специальных ( коррекционных) образовательных учреждениях для детей- сирот и детей, обучающихся, воспитанников с ограниченными возможностями здоровья"]
["2.1.8. Осуществление выплат вознаграждения за выполнение функций классного руководителя педагогическим работникам муниципальных образовательных учреждений"]
["2.1.9. Обеспечение расходов за счет средств муниципального бюджета.",{"$f":"C18+H18+I18","v":11607000},{"$f":"D18+E18+F18+G18","v":3869000},1288000,886000,793000,902000,3869000,3869000]
["2.2. целевые субсидии  "]
["2.3. бюджетные    инвестиции                  "]
["2.4. поступления от    \nоказания учреждением   \nуслуг (выполнения      \nработ), относящихся в  \nсоответствии с уставом \nк основным видам       \nдеятельности,          \nпредоставление которых \nосуществляется на      \nплатной основе, а также\nпоступления от иной    \nприносящей доход       \nдеятельности   всего \n"]
["3. Выплаты по обеспечению государственных гарантий прав граждан на получение общедоступного бесплатного дошкольного образования, всего : в том числе:     "]
["3.1. оплата труда и    начисления на выплаты  по оплате труда        "]
["3.2. приобретение      материальных запасов   "]
["4. Выплаты по социальной поддержке семей, имеющих детей, в отношении питания детей, обучающихся в общеобразовательных школах, всего:, в том числе:                 ",{"$f":"B27+B26","v":826200},{"$f":"D25+E25+F25+G25","v":275400},{"$f":"D26+D27","v":130000},{"$f":"E26+E27","v":60000},{"$f":"F26+F27","v":50000},{"$f":"G26+G27","v":35400},{"$f":"H26+H27","v":275400},275400]
["4.1. приобретение      материальных запасов   "]
["4.2. прочие работы, услуги     ",{"$f":"C27+H27+I27","v":826200},{"$f":"D27+E27+F27+G27","v":275400},130000,60000,50000,35400,275400,275400]
["5. Выплаты по обеспечению государственных гарантий прав граждан на  получение общедоступного и бесплатного начального общего, основного общего, среднего (полного) общего образования всего, в том числе :",{"$f":"B29+B30+B31+B32+B33+B34+B35+B36+B39+B40+B41+B42","v":16101000},{"$f":"C29+C30+C31+C32+C33+C34+C35+C36+C39+C40+C41+C42","v":5367000},{"$f":"D29+D30+D31+D32+D33+D34+D35+D36+D39+D40+D41+D42","v":1342000},1771000,912000,1342000,{"$f":"H29+H30+H31+H32+H33+H34+H35+H36+H39+H40+H41+H42","v":5367000},5367000]
["5.1. Оплата труда ",{"$f":"C29+H29+I29","v":11271000},{"$f":"D29+E29+F29+G29","v":3757000},945600,1250000,632800,928600,3757000,3757000]
["5.2.Прочие выплаты",{"$f":"C30+H30+I30","v":12000},4000,1000,1000,1000,1000,4000,4000]
["5.3. Начисления на выплаты  по оплате труда        ",{"$f":"C31+H31+I31","v":3403800},1134600,285600,377500,191100,280400,1134600,1134600]
["5.4. Услуги связи      ",{"$f":"C32+H32+I32","v":81000},27000,6500,7000,7000,6500,27000,27000]
["5.5. Транспортные      услуги                 ",{"$f":"C33+H33+I33","v":0},0]
["5.6. прочие услуги     ",null,0]
["5.7. Прочие работы, услуги",{"$f":"C35+H35+I35","v":792000},264000,44000,70800,61200,88000,264000,264000]
["5.8. Социальное обеспечение",{"$f":"B37+B38","v":0},{"$f":"C37+C38","v":0},0,0,0,0,0,0]
["5.8.1. Пенсии, пособия и выплаты по пенсионному, социальному и медицинскому страхованию населения, пособия по социальному страхованию"]
["5.8.2. Пособия по социальной помощи населению организациям сектора государственного управления"]
["5.9. Прочие расходы",{"$f":"C39+H39+I39","v":150000},{"$f":"D39+E39+F39+G39","v":50000},34300,9700,3100,2900,50000,50000]
["5.10. Увеличение стоимости основных средств",null,{"$f":"D40+E40+F40+G40","v":0}]
["5.11. Увеличение стоимости материальных активов",{"$f":"C41+H41+I41","v":391200},{"$f":"D41+E41+F41+G41","v":130400},25000,55000,15800,34600,130400,130400]
["5.12. Иные выплаты, не запрещенные    законодательством  Российской Федерации       "]
["6. Выплаты по обеспечению государственных гарантий прав граждан, содержащихся в исправительных учреждениях УИН, на  получение общедоступного и бесплатного начального общего, основного общего, среднего (полного) общего образования всего, в том числе:",{"$f":"B44+B45+B46+B47+B48+B49+B50+B51+B54+B55+B56+B57","v":0},{"$f":"C44+C45+C46+C47+C48+C49+C50+C51+C54+C55+C56+C57","v":0},0,0,0,0,0,0]
["6.1. Оплата труда "]
["6.2.Прочие выплаты"]
["6.3. Начисления на выплаты  по оплате труда        "]
["6.4. Услуги связи      "]
["6.5. Транспортные      услуги                 "]
["6.6. Прочие услуги     "]
["6.7. Прочие работы, услуги"]
["6.8. Социальное обеспечение",{"$f":"B52+B53","v":0},{"$f":"C52+C53","v":0},0,0,0,0,0,0]
["6.8.1. Пенсии, пособия и выплаты по пенсионному, социальному и медицинскому страхованию населения, пособия по социальному страхованию"]
["6.8.2. Пособия по социальной помощи населению организациям сектора государственного управления"]
["6.9. Прочие расходы"]
["6.10. Увеличение стоимости основных средств"]
["6.11. Увеличение стоимости материальных активов"]
["6.12. Иные выплаты, не запрещенные    законодательством Российской Федерации        "]
["7. Выплаты по социальной поддержке семей, имеющих детей, в отношении содержания детей в организациях, оказывающих услуги по обучению, воспитанию и уходу за детьми дошкольного возраста всего , в том числе:",{"$f":"B59+B60+B61+B62+B63+B64+B65+B66+B69+B70+B71+B72","v":0},{"$f":"C59+C60+C61+C62+C63+C64+C65+C66+C69+C70+C71+C72","v":0},0,0,0,{"$f":"G59+G60+G61+G62+G63+G64+G65+G66+G69+G70+G71+G72","v":0},0,0]
["7.1. Оплата труда "]
["7.2.Прочие выплаты"]
["7.3. Начисления на выплаты  по оплате труда        "]
["7.4. Услуги связи      "]
["7.5. Транспортные      услуги                 ",null,{"$f":"D63+E63+F63+G63","v":0}]
["7.6. Прочие услуги     "]
["7.7. Прочие работы, услуги",null,{"$f":"D65+E65+F65+G65","v":0}]
["7.8. Социальное обеспечение",{"$f":"B67+B68","v":0},0,{"$f":"D67+D68","v":0},0,0,0,0,0]
["7.8.1. Пенсии, пособия и выплаты по пенсионному, социальному и медицинскому страхованию населения, пособия по социальному страхованию"]
["7.8.2. Пособия по социальной помощи населению организациям сектора государственного управления"]
["7.9. Прочие расходы"]
["7.10. Увеличение стоимости основных средств"]
["7.11. Увеличение стоимости материальных активов"]
["7.12. Иные выплаты, не запрещенные    законодательством    Российской Федерации    "]
["8. Выплаты по социальной поддержке семей, имеющих детей, в отношении компенсации части родительской платы за содержание ребенка в образовательных организациях, реализующих основную общеобразовательную программу дошкольного образования, за счет средств областного  бюджета всего, в том числе: ",{"$f":"B74","v":0},{"$f":"C74","v":0},0,0,0,0,0,0]
["8.1. приобретение      материальных запасов   "]
["9. Выплаты по социальной поддержке детей, обучающихся в  специальных (коррекционных) образовательных учреждениях обучающихся, воспитанников с ограниченными возможностями здоровья, в специальных ( коррекционных) образовательных учреждениях для детей- сирот и детей, обучающихся, воспитанников с ограниченными возможностями здоровья всего, в том числе:",{"$f":"B76+B77","v":0},{"$f":"C76+C77","v":0},0,0,0,0,0,0]
["9.1. приобретение      материальных запасов   "]
["9.2. прочие работы, услуги     "]
["10. Выплаты по осуществлению выплат вознаграждения за выполнение функций классного руководителя педагогическим работникам муниципальных образовательных учреждений",{"$f":"B79+B80","v":0},{"$f":"C79+C80","v":0},0,0,0,0,0,0]
["10. 1. Оплата труда "]
["10.2. Начисления на выплаты  по оплате труда        "]
["11. Выплаты за счет средств муниципального бюджета.",{"$f":"B82+B83+B84+B85+B86+B87+B88+B89+B90+B91+B92+B95+B96+B97+B98","v":11607000},{"$f":"C82+C83+C84+C85+C86+C87+C88+C89+C90+C91+C92+C95+C96+C97+C98","v":3869000},1288000,886000,793000,902000,3869000,3869000]
["11.1. Оплата труда "]
["11.2.Прочие выплаты"]
["11.3. Начисления на выплаты  по оплате труда        "]
["11.4. Услуги связи      "]
["11.5. Транспортные      услуги                 ",{"$f":"C86+H86+I86","v":630900},{"$f":"D86+E86+F86+G86","v":210300},55000,35100,65000,55200,210300,210300]
["11.6. Прочие услуги     "]
["11.7. коммунальные      услуги                 ",{"$f":"C88+H88+I88","v":5477100},{"$f":"D88+E88+F88+G88","v":1825700},562600,540900,480400,241800,1825700,1825700]
["11.8. Работы, услуги по содержанию имущества",{"$f":"C89+H89+I89","v":3018600},{"$f":"D89+E89+F89+G89","v":1006200},365000,140000,136200,365000,1006200,1006200]
["11.9. Капитальный ремонт"]
["11.10.  Прочие работы, услуги",{"$f":"C91+H91+I91","v":1549200},{"$f":"D91+E91+F91+G91","v":516400},185000,120000,41400,170000,516400,516400]
["11.11. Социальное обеспечение",{"$f":"B93+B94","v":0},{"$f":"C93+C94","v":0},0,0,0,0,0,0]
["11.11.1. Пенсии, пособия и выплаты по пенсионному, социальному и медицинскому страхованию населения, пособия по социальному страхованию"]
["11.11.2. Пособия по социальной помощи населению организациям сектора государственного управления"]
["11.12. Прочие расходы"]
["11.13. Увеличение стоимости основных средств",{"$f":"C96+H96+I96","v":61200},{"$f":"D96+E96+F96+G96","v":20400},20400,null,null,null,20400,20400]
["11.14. Увеличение стоимости материальных активов",{"$f":"C97+H97+I97","v":870000},{"$f":"D97+E97+F97+G97","v":290000},100000,50000,70000,70000,290000,290000]
["11.15. Иные выплаты, не запрещенные    законодательством Российской Федерации        "]
["12.Иные выплаты, не запрещенные    законодательством Российской Федерации    "]
["13. Остаток средств     ",{"$f":"B6+B7-B22-B25-B28-B43-B58-B73-B75-B81-B99","v":0},{"$f":"C6+C7-C22-C25-C28-C43-C58-C73-C75-C81-C99","v":0},0,0,0,0,0,0]
["14. Справочно:          "]
["Объем публичных        обязательств перед     физическими лицами,    \nподлежащих исполнению  \nв денежной форме,  полномочия, по исполнению которых, от  имени  учредителя передаются учреждению, всего      \n"]

{"sheet":"Лист3","index":2,"n_rows":120,"n_cols":3,"rows_kept":120,"cut":false,"hidden":false,"merged":[[37,3,38,3],[79,0,79,2],[81,0,81,2],[1,0,1,2],[2,0,2,2],[4,0,4,2]]}
[]
["план "]
["финансово- хозяйственной деятельности "]
[]
["1.     Учетная карта учреждения"]
[]
[null,"Полное, краткое наименование  учреждения:"]
[null,"наименование органа, осуществляющего функции и полномочия учредителя","Отдел образования Администрации Тобольского муниципального района"]
[null,"Юридический адрес"]
[null,"Дата регистрации"]
[null,"Место регистрации"]
[null,"Телефон (факс) учреждения"]
[null,"Адрес электронной почты"]
[null,"Ф.И.О. руководителя учреждения"]
[null,"Ф.И.О. главного бухгалтера"]
[null,"ИНН/КПП"]
[null,"Код ОКВЭД (ОКОНХ)"]
[null,"(вид деятельности)"]
[null,"Код ОКПО"]
[null,"Код ОКАТО (местонахождение)"]
[null,"Код ОКОПФ (организационно-правовая форма)"]
[null,"Код ОКОГУ (орган управления)"]
[null,"  "]
[null,"2. Общая характеристика учреждения"]
[]
["1.","Основные общеобразовательные программы:"]
["2.","Образовательные программы"]
["3.","Наличие лицензий"]
["4.","Свидетельство о государственной  аккредитации  учреждения"]
["5.","Тип учреждения"]
["6.","Вид учреждения"]
["7.","Структура управления учреждением"]
["8.",". Цели деятельности Учреждения"]
["9.","Виды деятельности Учреждения, относящиеся к его основным видам деятельности в соответствии с уставом учреждения "]
["10.","Списочная численность работников всего, в том числе:"]
["10.1.","- Административно-управленческий персонал (АУП)"]
["10.2.","- Всего педагогических работников, в том числе:"]
["10.2.1."," педагоги, непосредственно осуществляющие "]
[null,"учебный процесс"]
["10.2.1.1.","Из них основных работников"]
["10.2.2."," иные категории педагогических работников"]
["10.2.2.1.","Из них основных работников"]
["10.3.","-Учебно-вспомогательный персонал (УВП)"]
["10.4.","-Младший обслуживающий (вспомогательный) персонал (МОП)"]
["11.","Штаты учреждения всего, в том числе:"]
["11.1.","- Административно-управленческий персонал (АУП)"]
["11.2.","- Всего педагогических работников, в том числе:"]
["11.2.1."," педагоги, непосредственно осуществляющие учебный процесс"]
["11.2.2."," иные категории педагогических работников"]
["11.3.","-Учебно-вспомогательный персонал (УВП)"]
["11.4.","-Младший обслуживающий (вспомогательный) персонал (МОП)"]
["12. ","Численность классных руководителей"]
["12.1.","Количества класс, класс- комплектов"]
["13.","Численность лиц, привлеченных по договорам ГПХ всего, в том числе:"]
["13.1.","Обеспечение государственных гарантий прав граждан на  получение общедоступного и бесплатного начального общего, основного общего, среднего (полного) общего образования"]
["13.2.","Обеспечение государственных гарантий прав граждан, содержащихся в исправительных учреждениях УИН, на  получение общедоступного и бесплатного начального общего, основного общего, среднего (полного) общего образования"]
["13.3.","Социальная поддержка семей, имеющих детей, в отношении содержания детей в организациях, оказывающих услуги по обучению, воспитанию и уходу за детьми дошкольного возраста"]
["13.4.","Обеспечение расходов за счет средств муниципального бюджета."]
["14.","Численность воспитанников, охваченных горячим питанием всего:, из них:"]
["14.1.","Численность детей с ОВЗ"]
["14.2.","Численность малообеспеченных детей"]
["15.","Количество учебных часов по тарификации всего, в том числе:"]
["15.1.","Основных работников"]
["15.2.","Совместителей"]
["16.","Проектная/ фактическая мощность учреждения"]
["17.","Количество зданий, строений, сооружений"]
["18.","Этажность здания школы (детского сада)"]
["19.","Объем каждого здания"]
["20.","% износа каждого здания"]
["21. ","Год ввода в эксплуатацию зданий"]
["22.","Протяженность тепловых сетей"]
["23.","Протяженность электрических сетей"]
["24.","% износа тепловых сетей"]
["25.","% износа электрических сетей"]
["26.","Площадь зданий всего, в том числе:"]
["26.1.","- школа (детский сад);"]
["26.2.","- котельная;"]
["26.3.","- другие"]
[]
["    3.   Услуги   (работы),   относящиеся  к  основным  видам  деятельности Учреждения,   предоставление  которых  для  физических  и юридических лиц осуществляется за плату:____________________________________"]
[null,"              "]
["4. Показатели финансового состояния учреждения"]
[]
[null,"Наименование финансового показателя          ","Размер,  руб."]
[null,"1. Внеоборотные активы, общая сумма, из них:           ",{"$f":"C86+C91+C95","v":0}]
[null,"Недвижимое имущество,                                  ",{"$f":"C88+C89+C90","v":0}]
[null,"в том числе:                                           "]
[null,"- закрепленное за учреждением учредителем;                       "]
[null,"- приобретенное за счет средств, выделенных учредителем;"]
[null,"- приобретенное за счет средств, полученных в   результате осуществления приносящей доход деятельности       "]
[null,"Особо ценное движимое имущество,                       ",{"$f":"C93+C94","v":0}]
[null,"в том числе:                                           "]
[null,"- закрепленное за учреждением учредителем                       "]
[null,"- приобретенное за счет средств, выделенных учредителем"]
[null,"Прочее движимое имущество,                             ",{"$f":"C97+C98+C99","v":0}]
[null,"в том числе:                                           "]
[null,"- закрепленное за учреждением учредителем                       "]
[null,"- приобретенное за счет средств, выделенных учредителем"]
[null,"- приобретенное за счет средств, полученных в   результате осуществления приносящей доход деятельности       "]
[null,"2. Оборотные активы, общая сумма, из них:              ",{"$f":"C101+C105","v":0}]
[null,"Запасы,                                                ",{"$f":"C103+C104","v":0}]
[null,"в том числе:                                           "]
[null,"- приобретенные за счет средств целевого финансирования"]
[null,"- приобретенные за счет средств, полученных в          "]
[null,"результате осуществления приносящей доход деятельности "]
[null,"3. Дебиторская задолженность, общая сумма,             ",{"$f":"C108+C109","v":0}]
[null,"в том числе:                                           "]
[null,"- покупатели и заказчики                               "]
[null,"- прочие дебиторы                                      "]
[null,"4. Целевое финансирование,                             ",{"$f":"C112+C114+C115+C116","v":0}]
[null,"в том числе:                                           "]
[null,"- в виде субсидий, выделенных из бюджета бюджетной     "]
[null,"системы РФ                                             "]
[null,"- в виде имущества, закрепленного учредителем          "]
[null,"- в виде пожертвований от частных лиц и компаний       "]
[null,"- в виде средств, полученных в результате ведения    приносящей доход деятельности         "]
[null,"5. Кредиторская задолженность, общая сумма,            ",{"$f":"C119+C120","v":0}]
[null,"в том числе:                                           "]
[null,"- поставщики и подрядчики                              "]
[null,"- прочие кредиторы                                     "]